bitfinex-derivatives/quotes_ETHF0:USTF0_20210402
["timestamp","ask_amount","ask_price","bid_price","bid_amount"]
[1617404184260,4.4359,2108.0,2105.2,0.16039212]
[1617404184461,4.4359,2108.0,2105.3,4.81654923]
[1617404184661,3.4995,2108.0,2105.2,4.81775491]
[1617404184860,3.4995,2108.0,2105.4,0.16048368]
[1617404185061,3.4995,2108.0,2105.4,1.59098368]
[1617404185261,3.4995,2108.0,2106.7,2.90695]
[1617404185462,2.0,2108.0,2106.7,2.90695]
[1617404185862,30.0,2107.9,2106.7,2.90695]
[1617404186062,2.0,2108.0,2106.7,2.90695]
[1617404186463,2.0,2108.0,2106.7,4.78425]
[1617404186662,2.0,2108.0,2106.7,1.8773]
[1617404187263,2.90695,2106.8,2106.7,1.8773]
[1617404187463,2.90695,2106.8,2106.6,2.90695]
[1617404196775,2.90695,2106.8,2105.9,4.82860395]
[1617404197276,1.5203,2107.7,2106.3,2.90695]
[1617404198176,0.9366,2107.9,2106.3,2.90695]
[1617404198376,0.9366,2107.9,2105.9,4.82860395]
[1617404198576,0.9366,2107.9,2105.8,4.83071723]
[1617404198776,0.9366,2107.9,2106.0,0.16070145]
[1617404199177,0.9366,2107.9,2105.9,0.16073635]
[1617404199377,2.90695,2106.0,2105.9,2.90695]
[1617404199575,2.90695,2106.0,2105.8,0.16077948]
[1617404199978,2.90695,2106.0,2105.9,0.16084604]
[1617404200177,2.90695,2106.0,2105.6,0.16080836]
[1617404200778,2.90695,2106.0,2105.6,4.99518153]
[1617404201279,1.5573,2106.1,2105.8,2.90695]
[1617404201879,1.5573,2106.1,2105.9,0.16067651]
[1617404202082,1.5573,2106.1,2105.7,0.16070981]
[1617404203280,2.90695,2105.8,2105.7,0.16070981]
[1617404204187,2.90695,2105.8,2105.2,5.9114086]
[1617404204384,2.90695,2105.8,2104.9,5.91792616]
[1617404204584,2.90695,2105.8,2104.0,5.93217487]
[1617404204983,2.90695,2105.8,2103.8,5.93505565]
[1617404205183,60.2342,2105.6,2103.8,5.93505565]
[1617404205383,61.7538,2105.6,2103.9,5.93436555]
[1617404205584,91.7538,2105.6,2103.9,5.93436555]
[1617404205784,61.7538,2105.6,2103.7,5.93686709]
[1617404205986,30.0,2105.5,2103.7,5.93686709]
[1617404206385,30.0,2105.5,2103.8,5.93567966]
[1617404206987,61.7538,2105.6,2103.8,5.93567966]
[1617404207187,61.7538,2105.6,2104.1,5.94679625]
[1617404207386,2.90695,2104.6,2104.2,2.90695]
[1617404207588,2.90695,2104.6,2104.3,5.94362575]
[1617404207788,60.2342,2105.6,2104.3,5.94362575]
[1617404207989,60.2342,2105.6,2104.4,5.94177495]
[1617404208389,90.2342,2105.6,2104.5,5.94237743]
[1617404208589,90.2342,2105.6,2104.3,5.94629824]
[1617404208788,91.5994,2105.6,2104.3,5.94629824]
[1617404208989,91.5994,2105.6,2104.1,5.94996287]
[1617404209189,2.0,2105.5,2104.1,5.94996287]
[1617404209392,4.52235,2104.2,2103.9,8.86031589]
[1617404209790,4.52235,2104.2,2104.0,0.16177343]
[1617404212893,2.90695,2104.2,2104.0,0.16177343]
[1617404213093,30.0,2105.5,2104.0,0.16177343]
[1617404213296,30.0,2105.5,2104.8,2.90695]
[1617404214293,31.6725,2105.5,2104.4,5.94535261]
[1617404214493,31.6725,2105.5,2104.6,4.86494396]
[1617404214694,31.6725,2105.5,2104.5,0.16135141]
[1617404214893,31.6725,2105.5,2103.7,4.84640424]
[1617404215293,31.6725,2105.5,2104.5,2.90695]
[1617404215494,1.6725,2105.5,2104.5,2.90695]
[1617404216893,1.6725,2105.5,2103.7,4.84640424]
[1617404217296,1.6725,2105.5,2104.4,2.90695]
[1617404218797,1.6725,2105.5,2103.9,4.86250196]
[1617404219197,32.0,2105.8,2103.9,4.86250196]
[1617404219397,2.90695,2104.0,2103.9,7.76945196]
[1617404219597,2.90695,2104.0,2103.9,2.90695]
[1617404221201,1.4939,2105.5,2103.9,2.90695]
[1617404221401,1.4939,2105.5,2104.3,2.90695]
[1617404221801,32.0,2105.8,2104.3,2.90695]
[1617404223402,2.90695,2104.4,2104.3,2.90695]
[1617404227409,1.59,2105.6,2104.3,2.90695]
[1617404227612,13.197,2105.9,2104.3,4.34395]
[1617404228609,12.8341,2107.0,2104.3,4.34395]
[1617404228810,12.7384,2106.9,2104.3,4.34395]
[1617404229209,12.7384,2106.9,2104.3,9.16283939]
[1617404229409,12.7384,2106.9,2106.1,2.90695]
[1617404229611,12.7384,2106.9,2106.1,4.15795]
[1617404230612,12.7384,2106.9,2104.8,1.4503]
[1617404231314,12.7384,2106.9,2105.4,2.90695]
[1617404231915,42.7384,2106.9,2104.8,1.4503]
[1617404233319,42.7384,2106.9,2105.3,2.90695]
[1617404234320,12.7384,2106.9,2105.3,2.90695]
[1617404234521,12.7384,2106.9,2105.3,4.88835]
[1617404235422,12.7384,2106.9,2106.4,2.90695]
[1617404235621,12.7384,2106.9,2106.4,4.41425]
[1617404235819,13.1484,2106.9,2106.4,4.41425]
[1617404236722,13.1484,2106.9,2105.3,1.9814]
[1617404237323,13.1484,2106.9,2104.8,1.5573]
[1617404237523,13.1484,2106.9,2105.5,2.90695]
[1617404239426,13.1484,2106.9,2106.8,2.90695]
[1617404239827,13.1484,2106.9,2106.5,1.696]
[1617404240227,0.41,2106.9,2106.5,1.696]
[1617404241428,0.41,2106.9,2106.8,2.90695]
[1617404243529,3.31695,2106.9,2106.8,2.90695]
[1617404274266,3.31695,2106.9,2105.6,0.9438]
[1617404275466,4.27915,2106.9,2105.6,0.9438]
[1617404275666,4.27915,2106.9,2106.8,2.90695]
[1617404275867,3.31695,2106.9,2106.8,2.90695]
[1617404282275,3.31695,2106.9,2105.6,0.9438]
[1617404283576,3.31695,2106.9,2106.8,2.90695]
[1617404288685,3.31695,2106.9,2106.8,3.064613]
[1617404288884,3.31695,2106.9,2106.8,5.862113]
[1617404289085,0.41,2106.9,2106.8,5.862113]
[1617404290084,0.41,2106.9,2106.8,4.914313]
[1617404291085,0.41,2106.9,2106.8,5.862213]
[1617404292186,0.41,2106.9,2106.8,4.914313]
[1617404293287,0.41,2106.9,2106.8,3.064613]
[1617404293487,2.90695,2107.8,2106.8,3.064613]
[1617404293688,54.8529,2108.1,2107.6,2.90695]
[1617404294989,54.8529,2108.1,2107.4,0.9398]
[1617404295188,54.8529,2108.1,2106.5,0.9636]
[1617404295588,54.8529,2108.1,2106.6,0.15733028]
[1617404295790,54.8529,2108.1,2107.4,2.90695]
[1617404295990,54.8529,2108.1,2107.4,3.84375]
[1617404296190,54.8529,2108.1,2107.4,2.90695]
[1617404296790,14.7724,2108.6,2107.4,2.90695]
[1617404296992,75.0381,2108.5,2107.4,2.90695]
[1617404297190,105.0381,2108.5,2107.4,2.90695]
[1617404297390,2.0,2108.4,2107.4,2.90695]
[1617404297791,4.53335,2107.5,2107.4,2.90695]
[1617404300892,2.90695,2107.5,2107.4,2.90695]
[1617404305593,2.90695,2107.5,2106.2,0.9368]
[1617404305794,2.90695,2107.0,2106.9,2.90695]
[1617404311105,0.9479,2107.0,2106.9,3.85115]
[1617404311305,86.5809,2108.2,2106.9,4.88275]
[1617404311905,86.5809,2108.2,2107.6,2.90695]
[1617404312306,73.1747,2108.2,2107.6,2.90695]
[1617404313707,12.6343,2108.3,2107.6,2.90695]
[1617404313908,12.6343,2108.3,2107.9,2.90695]
[1617404315811,2.90695,2108.0,2107.9,2.90695]
[1617404336335,2.90695,2108.0,2107.9,7.77901813]
[1617404336634,2.90695,2108.0,2107.9,2.90695]
[1617404339739,2.90695,2108.0,2107.9,7.7722085]
[1617404340139,2.90695,2108.0,2107.9,2.90695]
[1617404340441,2.90695,2108.0,2107.9,7.77394342]
[1617404340843,2.90695,2108.0,2107.9,2.90695]
[1617404344445,13.0,2108.6,2107.9,2.90695]
[1617404344843,13.0,2108.6,2107.9,7.7627018]
[1617404345444,13.0,2108.6,2108.0,4.85284766]
[1617404345645,13.0,2108.6,2108.0,6.85064766]
[1617404346043,15.90695,2108.6,2108.5,2.90695]
[1617404349145,17.78775,2108.6,2108.5,2.90695]
[1617404349348,15.90695,2108.6,2108.5,2.90695]
[1617404352447,15.90695,2108.6,2108.5,4.56275]
[1617404354249,15.90695,2108.6,2108.5,2.90695]
[1617404366765,15.90695,2108.6,2107.4,4.86154094]
[1617404366968,53.9903,2108.5,2107.4,4.86154094]
[1617404367167,30.0,2108.4,2107.4,4.86154094]
[1617404367467,2.0,2108.3,2107.1,4.86772789]
[1617404367666,33.6718,2108.2,2107.1,4.86772789]
[1617404367969,33.6718,2108.2,2107.2,2.90695]
[1617404370167,4.21665,2107.3,2107.2,2.90695]
[1617404371271,2.90695,2107.3,2107.2,2.90695]
[1617404374577,2.0,2108.5,2107.2,2.90695]
[1617404374978,2.0,2108.5,2107.2,7.77260327]
[1617404375378,2.0,2108.5,2107.3,4.86523001]
[1617404375981,32.0,2108.5,2107.3,4.86523001]
[1617404376179,2.90695,2107.4,2107.3,4.86523001]
[1617404376379,2.90695,2107.4,2107.2,2.90695]
[1617404385290,33.2772,2107.3,2106.7,4.87544399]
[1617404385692,33.2772,2107.3,2106.5,5.95887599]
[1617404385693,33.2772,2107.3,2106.5,4.87967878]
[1617404386094,33.2772,2107.3,2106.2,7.79021294]
[1617404386095,2.90695,2106.6,2106.2,7.79021294]
[1617404386496,2.90695,2106.6,2106.3,4.8838311]
[1617404386895,105.307,2108.0,2106.3,6.1075311]
[1617404387295,105.307,2108.0,2106.6,4.87889726]
[1617404387897,106.2608,2108.0,2106.5,4.87937928]
[1617404388096,107.8589,2108.0,2106.5,4.87937928]
[1617404388297,2.90695,2106.6,2106.5,4.87937928]
[1617404390198,2.90695,2106.6,2106.5,7.78632928]
[1617404390698,2.90695,2106.6,2106.5,2.90695]
[1617404392599,2.90695,2106.6,2106.3,4.8704633]
[1617404393099,2.90695,2106.6,2106.2,4.87044305]
[1617404394199,2.90695,2106.6,2106.3,2.90695]
[1617404394801,2.90695,2106.6,2106.3,7.77568157]
[1617404397403,2.90695,2106.6,2106.3,2.90695]
[1617404401807,2.90695,2106.6,2106.3,7.76980263]
[1617404402807,2.90695,2106.6,2106.4,4.86046219]
[1617404403107,0.41,2107.4,2106.5,4.85953207]
[1617404404108,0.41,2107.4,2106.4,6.76901491]
[1617404404309,0.41,2107.4,2107.1,2.90695]
[1617404406011,0.41,2107.4,2106.6,4.85426185]
[1617404406410,0.41,2107.4,2106.8,2.90695]
[1617404406609,2.2172,2107.4,2106.8,2.90695]
[1617404408511,2.90695,2106.9,2106.8,2.90695]
[1617404408711,4.28665,2106.9,2106.8,2.90695]
[1617404410116,4.28665,2106.9,2106.3,4.85834411]
[1617404410315,2.90695,2106.4,2106.3,7.76529411]
[1617404410615,4.28045,2106.4,2106.3,7.76529411]
[1617404410816,4.28045,2106.4,2106.3,7.92600701]
[1617404413817,4.28045,2106.4,2106.3,7.76529411]
[1617404414019,4.28045,2106.4,2106.3,2.90695]
[1617404414219,1.3735,2106.4,2106.3,2.90695]
[1617404414419,2.90695,2106.6,2106.3,7.92516599]
[1617404414822,2.90695,2106.6,2106.3,7.76423005]
[1617404415422,2.90695,2106.6,2106.4,5.01667701]
[1617404415823,2.90695,2106.6,2106.3,7.76049142]
[1617404416423,2.90695,2106.6,2106.4,0.16090688]
[1617404416624,2.90695,2106.6,2106.4,5.01394119]
[1617404417023,2.90695,2106.6,2106.5,0.16091046]
[1617404417424,2.90695,2106.6,2106.3,7.76034878]
[1617404417923,2.90695,2106.6,2106.3,2.90695]
[1617404418323,2.90695,2106.6,2106.3,7.76172684]
[1617404418523,2.90695,2106.6,2106.4,0.161061]
[1617404420526,2.90695,2106.6,2106.4,5.0154504]
[1617404420827,2.90695,2106.6,2106.4,0.161061]
[1617404421027,2.90695,2106.6,2106.5,0.16154265]
[1617404422028,2.90695,2106.6,2106.4,0.16157903]
[1617404422627,2.90695,2106.6,2106.4,5.01059112]
[1617404423128,2.90695,2106.6,2106.5,0.1616117]
[1617404424130,2.90695,2106.6,2106.5,1.1087117]
[1617404424530,2.90695,2106.6,2106.5,0.1616117]
[1617404425631,57.5418,2107.4,2106.5,0.1616117]
[1617404426431,57.5418,2107.4,2107.2,2.90695]
[1617404428532,2.90695,2107.3,2107.2,2.90695]
[1617404435642,57.5418,2107.4,2107.2,2.90695]
[1617404436944,57.5418,2107.4,2107.3,0.16136265]
[1617404437645,57.5418,2107.4,2107.3,4.98232919]
[1617404439446,57.5418,2107.4,2107.3,0.16136265]
[1617404440149,57.5418,2107.4,2107.3,6.051759]
[1617404440551,57.5418,2107.4,2107.3,0.16136265]
[1617404450459,57.1204,2107.4,2107.3,0.16136265]
[1617404450658,56.5281,2107.4,2107.3,0.16136265]
[1617404450859,53.9251,2107.4,2107.3,0.16136265]
[1617404451059,50.4171,2107.4,2107.3,0.16136265]
[1617404451261,49.3767,2107.4,2107.3,0.16136265]
[1617404451461,44.7951,2107.4,2107.3,0.16136265]
[1617404451660,41.9501,2107.4,2107.3,7.09761679]
[1617404451860,39.1431,2107.4,2107.3,0.16136265]
[1617404452060,37.2905,2107.4,2107.3,0.16136265]
[1617404452261,32.8974,2107.4,2107.3,0.16136265]
[1617404452459,29.5794,2107.4,2107.3,0.16136265]
[1617404452863,29.5794,2107.4,2107.3,8.1533608]
[1617404453062,28.0649,2107.4,2107.3,8.1533608]
[1617404453263,68.4423,2108.5,2107.3,8.1533608]
[1617404453462,13.0,2108.6,2107.3,8.1533608]
[1617404453763,11.8346,2108.6,2107.4,0.15850557]
[1617404453963,9.2266,2108.6,2108.3,5.85722293]
[1617404454161,9.2266,2108.6,2108.3,7.47182293]
[1617404454364,9.0365,2108.6,2108.5,5.85809896]
[1617404454562,6.111,2108.6,2108.5,5.85809896]
[1617404454762,6.111,2108.6,2108.5,8.76504896]
[1617404454963,11.102,2108.7,2108.6,68.9494]
[1617404455164,10.172,2108.7,2108.6,68.9494]
[1617404455363,10.015,2108.7,2108.6,69.10757009]
[1617404455565,7.4075,2108.7,2108.6,74.97202316]
[1617404455765,7.4075,2108.7,2108.6,69.10757009]
[1617404455965,6.6838,2108.7,2108.6,69.10757009]
[1617404456566,5.5536,2108.7,2108.6,69.10757009]
[1617404456768,3.4362,2108.7,2108.6,69.10757009]
[1617404456968,3.4362,2108.7,2108.6,74.96991341]
[1617404457670,3.4362,2108.7,2108.6,69.10757009]
[1617404458571,0.0506,2108.7,2108.6,69.10757009]
[1617404458772,0.0506,2108.7,2108.6,74.97357973]
[1617404459073,2.90695,2110.3,2108.6,74.97357973]
[1617404459374,2.90695,2110.3,2108.8,4.80053937]
[1617404459975,2.90695,2110.3,2108.8,6.71683937]
[1617404460477,2.90695,2110.3,2108.8,2.8522]
[1617404460781,2.90695,2110.3,2110.2,2.90695]
[1617404464180,13.6118,2111.0,2110.2,4.77305]
[1617404464779,13.6118,2111.0,2110.9,2.90695]
[1617404465180,13.6118,2111.0,2110.9,76.82205]
[1617404465982,13.6118,2111.0,2110.9,73.9151]
[1617404466784,16.51875,2111.0,2110.9,73.9151]
[1617404467886,16.51875,2111.0,2110.7,1.7321]
[1617404468883,13.6118,2111.0,2110.9,2.90695]
[1617404471586,60.8582,2112.2,2110.9,2.90695]
[1617404471788,60.8582,2112.2,2111.6,53.707]
[1617404471987,60.8582,2112.2,2111.6,55.2474]
[1617404472887,60.8582,2112.2,2111.9,2.90695]
[1617404473287,27.18,2112.8,2111.9,2.90695]
[1617404473488,27.18,2112.8,2112.2,55.7069]
[1617404473688,27.18,2112.8,2112.2,57.498]
[1617404474889,27.18,2112.8,2112.6,2.90695]
[1617404475390,27.18,2112.8,2112.2,57.498]
[1617404476891,27.18,2112.8,2112.7,2.90695]
[1617404477692,27.18,2112.8,2112.7,4.12895]
[1617404478893,30.08695,2112.8,2112.7,4.12895]
[1617404483303,16.51005,2112.8,2112.7,4.12895]
[1617404483504,13.6031,2112.8,2112.7,4.12895]
[1617404483704,2.571,2112.9,2112.8,59.4124]
[1617404483906,5.098,2113.7,2112.8,59.4124]
[1617404484107,5.098,2113.7,2112.7,4.12895]
[1617404484905,5.098,2113.7,2113.6,2.90695]
[1617404485105,12.6443,2114.6,2114.5,58.6946]
[1617404485906,12.96044047,2114.6,2114.5,58.6946]
[1617404486907,15.86739047,2114.6,2114.5,58.6946]
[1617404488309,3.22309047,2114.6,2114.1,1.4111]
[1617404488509,2.90695,2114.6,2114.1,1.4111]
[1617404489011,2.90695,2114.2,2114.1,1.4111]
[1617404489210,2.90695,2114.2,2114.1,2.3556]
[1617404491113,2.90695,2114.2,2114.1,70.0337]
[1617404492217,2.90695,2114.2,2114.1,69.0892]
[1617404493219,2.90695,2114.2,2114.1,70.0225]
[1617404493418,1.94045,2114.2,2114.1,70.0225]
[1617404493619,2.571,2114.7,2114.1,70.0225]
[1617404493819,2.571,2114.7,2114.1,2.3444]
[1617404494021,2.571,2114.7,2114.6,68.541]
[1617404494223,2.571,2114.7,2114.6,69.9139]
[1617404495024,5.47795,2114.7,2114.6,72.82085]
[1617404496831,5.47795,2114.7,2114.1,0.9333]
[1617404497129,2.571,2114.7,2114.1,2.90695]
[1617404497330,1.7313,2114.2,2114.1,2.90695]
[1617404497533,1.7313,2114.2,2113.0,0.9606]
[1617404497729,1.7313,2114.2,2113.0,53.1835]
[1617404498729,1.7313,2114.2,2111.7,0.946]
[1617404498929,1.7313,2114.2,2112.8,2.90695]
[1617404499129,80.1519,2113.7,2111.8,65.3133]
[1617404500130,80.1519,2113.7,2111.8,66.2486]
[1617404500330,1.3072,2113.7,2111.8,0.9353]
[1617404500529,1.3072,2113.7,2112.8,72.7325]
[1617404500730,13.2214,2114.0,2112.8,72.7325]
[1617404500931,13.2214,2114.0,2113.3,2.90695]
[1617404501130,13.2214,2114.0,2112.8,72.7325]
[1617404501331,13.2214,2114.0,2110.5,1.5626]
[1617404501730,73.7595,2113.7,2111.6,73.0444]
[1617404502930,1.3713,2113.7,2110.5,1.5626]
[1617404503130,2.90695,2113.2,2112.8,2.90695]
[1617404504630,2.90695,2113.2,2112.8,80.06175]
[1617404505033,2.90695,2113.2,2113.1,2.90695]
[1617404505235,4.74395,2113.2,2112.8,77.1548]
[1617404505432,4.74395,2113.2,2111.7,0.9395]
[1617404505631,4.74395,2113.2,2111.7,55.0617]
[1617404506032,4.74395,2113.2,2111.7,54.1222]
[1617404507132,2.90695,2112.7,2112.6,2.90695]
[1617404509432,2.90695,2112.7,2112.5,72.5547]
[1617404510033,1.2255,2113.8,2112.5,72.5547]
[1617404510433,2.0,2113.9,2112.5,72.5547]
[1617404511333,2.90695,2113.0,2112.9,2.90695]
[1617404512535,13.2214,2114.0,2112.9,3.86215]
[1617404512735,13.2214,2114.0,2113.7,78.7442]
[1617404512935,13.2214,2114.0,2113.7,80.4976]
[1617404513135,13.2214,2114.0,2113.9,2.90695]
[1617404515139,16.12835,2114.0,2113.9,2.90695]
[1617404515539,16.12835,2114.0,2113.7,78.7442]
[1617404519743,13.2214,2114.0,2113.7,78.7442]
[1617404521245,13.2214,2114.0,2113.9,2.90695]
[1617404523347,16.27875,2114.1,2113.9,2.90695]
[1617404523549,13.3718,2114.1,2113.9,2.90695]
[1617404526250,2.571,2114.7,2113.9,2.90695]
[1617404526451,2.571,2114.7,2114.1,71.3648]
[1617404526654,2.571,2114.7,2114.1,72.302]
[1617404526851,1.7982,2114.7,2114.1,72.302]
[1617404527260,1.7982,2114.7,2114.6,4.58865]
[1617404527461,13.0062,2115.3,2114.6,4.58865]
[1617404528662,2.90695,2115.6,2114.6,4.58865]
[1617404529264,5.86115604,2116.0,2115.3,2.90695]
[1617404529962,5.86115604,2116.0,2115.8,56.8424]
[1617404531166,2.90695,2115.9,2115.8,56.8424]
[1617404536169,2.90695,2115.9,2115.3,2.90695]
[1617404536568,2.90695,2115.9,2115.1,74.5969]
[1617404537170,2.90695,2115.2,2115.1,74.5969]
[1617404537373,2.90695,2115.2,2114.1,2.90695]
[1617404537571,2.0,2115.1,2114.1,2.90695]
[1617404537972,4.52285,2115.2,2114.1,2.90695]
[1617404538371,4.52285,2115.2,2114.6,62.5245]
[1617404538572,2.90695,2115.2,2114.6,62.5245]
[1617404539173,26.2373,2115.8,2114.9,2.90695]
[1617404541175,2.90695,2115.0,2114.6,62.5245]
[1617404542576,26.2373,2115.8,2114.6,64.1585]
[1617404542777,26.2373,2115.8,2114.6,1.634]
[1617404542975,26.2373,2115.8,2115.3,65.7741]
[1617404543376,26.2373,2115.8,2115.5,2.90695]
[1617404543784,26.2373,2115.8,2115.3,65.7741]
[1617404544183,26.2373,2115.8,2111.4,4.65968406]
[1617404544390,26.2373,2115.8,2111.3,4.65988525]
[1617404544582,28.2373,2115.8,2114.2,57.4229]
[1617404545381,28.2373,2115.8,2113.9,1.7651]
[1617404545382,28.2373,2115.8,2115.0,2.90695]
[1617404545984,28.2373,2115.8,2115.1,54.0276]
[1617404546783,26.2373,2115.8,2115.1,54.0276]
[1617404547384,2.90695,2115.2,2115.1,56.93455]
[1617404548685,2.90695,2115.2,2115.1,2.90695]
[1617404554291,4.90695,2115.2,2115.1,2.90695]
[1617404556194,14.90695,2115.2,2115.1,2.90695]
[1617404556894,14.90695,2115.2,2114.8,73.0913]
[1617404557296,2.90695,2114.9,2114.8,73.0913]
[1617404557896,4.90695,2114.9,2114.7,2.90695]
[1617404558098,6.90055,2114.9,2114.7,2.90695]
[1617404558597,6.90055,2114.9,2113.5,59.7439]
[1617404559399,3.9936,2114.9,2113.8,2.90695]
[1617404559899,3.9936,2114.9,2113.5,59.7439]
[1617404561200,2.0,2114.9,2113.5,59.7439]
[1617404561401,2.0,2114.9,2114.7,2.90695]
[1617404561799,10.0,2115.2,2114.8,69.4802]
[1617404562001,10.0,2115.2,2114.8,70.7538]
[1617404564606,10.0,2115.2,2114.8,69.4802]
[1617404565407,2.90695,2114.9,2114.6,2.90695]
[1617404565809,2.90695,2114.9,2114.0,69.0411]
[1617404566710,4.90695,2114.9,2114.0,69.0411]
[1617404567511,2.0,2114.9,2114.2,2.90695]
[1617404568111,12.0,2114.8,2114.2,2.90695]
[1617404568310,13.9053,2114.8,2114.2,2.90695]
[1617404568911,13.9053,2114.8,2114.0,69.0411]
[1617404569514,4.23825,2114.1,2114.0,69.0411]
[1617404571514,4.23825,2114.1,2112.5,4.72788381]
[1617404571714,4.23825,2114.1,2112.7,73.3723]
[1617404573115,4.23825,2114.1,2112.6,4.73110804]
[1617404573316,4.23825,2114.1,2113.7,66.9053]
[1617404573517,4.23825,2114.1,2114.0,2.90695]
[1617404573715,2.90695,2114.1,2114.0,2.90695]
[1617404576921,12.7512,2114.7,2114.0,2.90695]
[1617404577423,12.7512,2114.7,2114.6,2.90695]
[1617404577621,12.7512,2114.7,2114.6,4.37425]
[1617404579220,12.7512,2114.7,2114.6,83.39625]
[1617404582725,12.0,2114.8,2114.6,4.37425]
[1617404584526,12.0,2114.8,2114.7,55.6548]
[1617404584726,12.0,2114.8,2114.7,56.6123]
[1617404585627,12.0,2114.8,2114.7,55.6548]
[1617404586628,12.0,2114.8,2114.7,56.5916]
[1617404590334,11.433,2114.8,2114.7,56.5916]
[1617404592035,9.5588,2114.8,2114.7,56.5916]
[1617404592235,8.6128,2114.8,2114.7,56.5916]
[1617404592436,7.6747,2114.8,2114.7,56.5916]
[1617404592635,5.8547,2114.8,2114.7,56.5916]
[1617404593635,5.3247,2114.8,2114.7,56.5916]
[1617404593835,5.3247,2114.8,2114.7,0.9368]
[1617404594035,1.374,2114.8,2114.7,0.9368]
[1617404594235,0.6799,2114.8,2114.7,0.9368]
[1617404594735,9.7399,2115.2,2114.7,0.9368]
[1617404595136,8.7999,2115.2,2114.7,0.9368]
[1617404595339,7.861,2115.2,2114.7,0.9368]
[1617404595541,7.861,2115.2,2115.1,2.90695]
[1617404595942,7.861,2115.2,2115.1,4.42915]
[1617404597342,7.861,2115.2,2115.1,2.90695]
[1617404597943,6.9309,2115.2,2115.1,2.90695]
[1617404598542,6.0109,2115.2,2115.1,2.90695]
[1617404598745,4.1509,2115.2,2115.1,2.90695]
[1617404600750,3.4407,2115.2,2115.1,2.90695]
[1617404602152,2.4947,2115.2,2115.1,2.90695]
[1617404603353,1.5647,2115.2,2115.1,2.90695]
[1617404603653,1.3424,2115.2,2115.1,2.90695]
[1617404606061,1.1952,2115.2,2115.1,2.90695]
[1617404607056,0.8172,2115.2,2115.1,2.90695]
[1617404607457,1.29015604,2116.0,2115.1,2.90695]
[1617404607656,1.29015604,2116.0,2115.9,2.90695]
[1617404609762,1.29015604,2116.0,2115.6,61.96675]
[1617404611665,1.29015604,2116.0,2115.9,2.90695]
[1617404612763,1.29015604,2116.0,2115.6,61.96675]
[1617404612962,1.29015604,2116.0,2114.9,54.9288]
[1617404613164,2.88835604,2116.0,2114.9,54.9288]
[1617404613363,2.0,2115.9,2114.9,54.9288]
[1617404613764,2.0,2115.9,2115.0,2.90695]
[1617404614876,2.88835604,2116.0,2115.0,2.90695]
[1617404615076,1.29015604,2116.0,2115.5,74.4474]
[1617404615677,1.29015604,2116.0,2115.7,2.90695]
[1617404617077,13.29015604,2116.0,2115.7,2.90695]
[1617404642509,12.39815604,2116.0,2115.7,2.90695]
[1617404642709,10.47715604,2116.0,2115.7,2.90695]
[1617404644513,9.76375604,2116.0,2115.7,2.90695]
[1617404647216,9.76375604,2116.0,2115.8,0.15174486]
[1617404648415,5.10375604,2116.0,2115.8,0.15174486]
[1617404648615,4.87775604,2116.0,2115.8,0.15174486]
[1617404649617,3.46545604,2116.0,2115.8,0.15174486]
[1617404650017,3.46545604,2116.0,2115.7,2.90695]
[1617404651017,3.46545604,2116.0,2115.8,65.5244]
[1617404653518,1.47595604,2116.0,2115.8,65.5244]
[1617404657922,2.90695,2115.9,2115.8,65.5244]
[1617404658121,4.88215,2115.9,2115.8,65.5244]
[1617404661227,6.88215,2115.9,2113.8,4.703682]
[1617404661429,6.88215,2115.9,2114.0,65.4999]
[1617404661836,6.88215,2115.9,2114.1,0.15315642]
[1617404662047,3.9752,2115.9,2113.4,4.70866336]
[1617404662233,76.2758,2115.7,2113.8,4.72286589]
[1617404662436,2.0,2115.6,2113.8,4.72286589]
[1617404662629,2.0,2115.6,2113.6,5.77239164]
[1617404662630,2.0,2115.6,2113.6,4.72474455]
[1617404663031,32.0,2115.6,2113.7,0.15355344]
[1617404663930,32.0,2115.6,2114.0,2.90695]
[1617404665931,2.90695,2114.1,2114.0,2.90695]
[1617404668537,1.9214,2114.8,2114.0,2.90695]
[1617404668736,32.0,2115.7,2114.7,76.837]
[1617404669337,2.0,2115.7,2114.7,76.837]
[1617404669936,2.90695,2115.1,2114.7,76.837]
[1617404671042,2.0,2115.7,2114.7,76.837]
[1617404671842,13.095,2116.3,2114.7,76.837]
[1617404672042,13.095,2116.3,2115.6,2.90695]
[1617404672242,13.095,2116.3,2115.6,3.86215]
[1617404672442,13.095,2116.3,2115.6,2.90695]
[1617404673047,13.095,2116.3,2115.2,1.837]
[1617404674045,4.38290604,2116.0,2115.7,59.74]
[1617404676050,4.38290604,2116.0,2115.7,62.64695]
[1617404677151,4.38290604,2116.0,2115.7,59.74]
[1617404682456,4.38290604,2116.0,2115.7,60.6887]
[1617404682657,1.47595604,2116.0,2115.7,60.6887]
[1617404683058,1.47595604,2116.0,2115.7,59.74]
[1617404683658,12.1129,2115.8,2115.7,59.74]
[1617404684858,11.9196,2115.8,2115.7,59.74]
[1617404688566,23.9196,2115.8,2115.7,59.74]
[1617404689567,12.0,2115.8,2115.7,59.74]
[1617404692272,8.8499,2115.8,2115.7,0.1518573]
[1617404692472,6.038,2115.8,2115.7,0.1518573]
[1617404692673,13.7272,2117.4,2115.7,0.1518573]
[1617404692872,13.7272,2117.4,2116.1,2.0]
[1617404693073,1.8652,2117.3,2116.1,2.9521]
[1617404693873,13.7272,2117.4,2116.1,2.9521]
[1617404694074,13.7272,2117.4,2117.3,2.90695]
[1617404694675,13.7272,2117.4,2117.3,80.68055]